fUST/lending_fUST_20240611
["ID","MTS","AMOUNT","RATE_DAILY","PERIOD"]
[329094163,1718101853821,-500.0,0.00022191,2]
[329094164,1718101853831,-500.0,0.00022191,2]
[329094165,1718101853842,-500.0,0.00022191,2]
[329094166,1718101853852,-500.0,0.00022191,2]
[329094167,1718101853863,-500.0,0.00022191,2]
[329094168,1718101853873,-500.0,0.00022191,2]
[329094169,1718101853884,-15514.61,0.00022191,2]
[329094170,1718101853894,-500.0,0.00022191,2]
[329094171,1718101853905,-500.0,0.00022191,2]
[329094172,1718101853916,-500.0,0.00022191,2]
[329094173,1718101853927,-500.0,0.00022191,2]
[329094174,1718101853938,-507.46232439,0.00022191,2]
[329094175,1718101853949,-238.2832711,0.00022191,2]
[329094176,1718101853960,-2020.41,0.00022191,2]
[329094177,1718101853971,-500.0,0.00022191,2]
[329094178,1718101853984,-500.0,0.00022191,2]
[329094179,1718101853994,-1603.17,0.00022191,2]
[329094180,1718101854004,-500.0,0.00022191,2]
[329094181,1718101854015,-151.0,0.00022191,2]
[329094182,1718101854024,-500.0,0.00022191,2]
[329094183,1718101854035,-151.0,0.00022191,2]
[329094184,1718101854045,-500.0,0.00022191,2]
[329094185,1718101854055,-380.38785,0.00022191,2]
[329094186,1718101854065,-380.38785,0.00022191,2]
[329094187,1718101854075,-500.0,0.00022191,2]
[329094188,1718101854086,-500.0,0.00022191,2]
[329094189,1718101854096,-380.38785,0.00022191,2]
[329094190,1718101854107,-380.38785,0.00022191,2]
[329094191,1718101854118,-151.0,0.00022191,2]
[329094192,1718101854128,-151.0,0.00022191,2]
[329094193,1718101854138,-2817.88,0.00022191,2]
[329094194,1718101854149,-500.0,0.00022191,2]
[329094195,1718101854159,-500.0,0.00022191,2]
[329094196,1718101854170,-572.38,0.00022191,2]
[329094197,1718101854181,-500.0,0.00022191,2]
[329094198,1718101854191,-500.0,0.00022191,2]
[329094199,1718101854202,-1933.91,0.00022191,2]
[329094200,1718101854212,-500.0,0.00022191,2]
[329094201,1718101854222,-500.0,0.00022191,2]
[329094202,1718101854233,-500.0,0.00022191,2]
[329094203,1718101854245,-500.0,0.00022191,2]
[329094204,1718101854256,-645.6530324,0.00022191,2]
[329094205,1718101854266,-500.0,0.00022191,2]
[329094206,1718101854277,-500.0,0.00022191,2]
[329094207,1718101854289,-500.0,0.00022191,2]
[329094208,1718101854300,-500.0,0.00022191,2]
[329094209,1718101854311,-500.75378772,0.00022191,2]
[329094210,1718101854321,-500.0,0.00022191,2]
[329094211,1718101854332,-500.0,0.00022191,2]
[329094212,1718101854343,-500.0,0.00022191,2]
[329094213,1718101854353,-500.0,0.00022191,2]
[329094214,1718101854364,-500.0,0.00022191,2]
[329094215,1718101854375,-500.0,0.00022191,2]
[329094216,1718101854386,-502.80384388,0.00022191,2]
[329094217,1718101854397,-500.0,0.00022191,2]
[329094218,1718101854408,-500.0,0.00022191,2]
[329094219,1718101854418,-158.356531,0.00022191,2]
[329094220,1718101854429,-500.0,0.00022191,2]
[329094221,1718101854440,-500.0,0.00022191,2]
[329094222,1718101854450,-500.0,0.00022191,2]
[329094223,1718101854462,-569.52,0.00022191,2]
[329094224,1718101854474,-500.0,0.00022191,2]
[329094225,1718101854484,-733.63,0.00022191,2]
[329094226,1718101854494,-500.0,0.00022191,2]
[329094227,1718101854504,-500.0,0.00022191,2]
[329094228,1718101854515,-500.0,0.00022191,2]
[329094229,1718101854525,-500.0,0.00022191,2]
[329094230,1718101854537,-500.0,0.00022191,2]
[329094231,1718101854551,-502.97180149,0.00022191,2]
[329094232,1718101854562,-500.0,0.00022191,2]
[329094233,1718101854573,-500.0,0.00022191,2]
[329094234,1718101854583,-500.0,0.00022191,2]
[329094235,1718101854594,-500.0,0.00022191,2]
[329094236,1718101854605,-500.0,0.00022191,2]
[329094237,1718101854616,-500.0,0.00022191,2]
[329094238,1718101854629,-500.0,0.00022191,2]
[329094239,1718101854640,-500.0,0.00022191,2]
[329094240,1718101854651,-500.0,0.00022191,2]
[329094241,1718101854662,-390.97470693,0.00022191,2]
[329094242,1718101854808,-109.02529307,0.00022191,2]
[329094243,1718101854819,-635.57,0.00022191,2]
[329094244,1718101854830,-501.72439855,0.00022191,2]
[329094245,1718101854841,-63.43367073,0.00022191,2]
[329094246,1718101854934,-343.79011506,0.00021917,2]
[329094247,1718101855034,-436.56632927,0.00022191,2]
[329094248,1718101855047,-500.0,0.00022191,2]
[329094249,1718101855058,-500.0,0.00022191,2]
[329094250,1718101855069,-500.0,0.00022191,2]
[329094251,1718101855080,-500.0,0.00022191,2]
[329094252,1718101855091,-500.0,0.00022191,2]
[329094253,1718101855102,-500.0,0.00022191,2]
[329094254,1718101855112,-500.0,0.00022191,2]
[329094255,1718101855123,-500.0,0.00022191,2]
[329094256,1718101855134,-500.0,0.00022191,2]
[329094257,1718101855144,-812.54355567,0.00022191,2]
[329094258,1718101855157,-1689.81644433,0.00022191,2]
[329094259,1718101855168,-220.45942557,0.00022191,2]
[329094260,1718101955856,303.336601,9.999e-05,2]
[329094261,1718101990262,1282.24587467,9.999e-05,2]
[329094264,1718102105586,722.49195225,9.999e-05,2]
[329094265,1718102327011,16185.40827819,9.999e-05,2]
[329094266,1718102335700,300.16961376,9.999e-05,2]
[329094267,1718102336912,3639.96681777,9.999e-05,2]
[329094268,1718102351424,155.19320582,9.999e-05,2]
[329094269,1718102353625,300.16961376,9.999e-05,2]
[329094270,1718102356770,3636.33674655,9.999e-05,2]
[329094271,1718102369627,300.16961376,9.999e-05,2]
[329094272,1718102375400,155.37217126,9.999e-05,2]
[329094273,1718102390255,156.05434903,9.999e-05,2]
[329094274,1718102391640,300.24167018,9.999e-05,2]
[329094275,1718102396774,3639.96681777,9.999e-05,2]
[329094276,1718102408982,11253.78103852,9.999e-05,2]
[329094277,1718102409017,4935.49848767,9.999e-05,2]
[329094278,1718102416775,3639.96681777,9.999e-05,2]
[329094279,1718102426978,2356.02401049,9.999e-05,2]
[329094280,1718102435639,300.31915887,9.999e-05,2]
[329094281,1718102461759,300.31915887,9.999e-05,2]
[329094282,1718102477637,296.13761031,9.999e-05,2]
[329094283,1718102661289,16175.12436626,9.999e-05,2]
[329094284,1718102673347,-5909.1,0.00027,120]
[329094285,1718102701285,1139.96765534,0.0001,2]
[329094286,1718102721612,292.59211394,9.999e-05,2]
[329094289,1718102762845,372.78673862,9.999e-05,2]
[329094290,1718102800594,489.96273621,9.999e-05,2]
[329094322,1718102947877,456.25,0.000265,120]
[329094324,1718103022394,1282.24587467,9.999e-05,2]
[329094339,1718103032783,-2835.70352642,0.00014963,2]
[329094347,1718103032947,-3154.9690062,0.00014963,2]
[329094348,1718103032962,-1929.96421265,0.00014963,2]
[329094349,1718103032976,-1282.24587467,0.00014964,2]
[329094350,1718103032989,-292.59211394,0.00014964,2]
[329094351,1718103032999,-305.2151031,0.00014965,2]
[329094352,1718103033013,-2682.75928745,0.00014965,2]
[329094353,1718103033023,-1911.54148934,0.00014966,2]
[329094354,1718103033033,-2037.29149856,0.00014966,2]
[329094355,1718103033044,-300.0,0.00014966,2]
[329094356,1718103033054,-300.0,0.00014966,2]
[329094357,1718103033065,-1877.1524641,0.00014967,2]
[329094358,1718103033075,-155.0418613,0.00016283,2]
[329094359,1718103033085,-1012.47586454,0.00016285,2]
[329094360,1718103033096,-240.0,0.0001638,2]
[329094361,1718103033108,-2054.7386784,0.0001776,2]
[329094362,1718103033119,-155.17407001,0.00017856,2]
[329094363,1718103033129,-182.5499108,0.0001793,2]
[329094364,1718103033147,-3000.0,0.0001793,2]
[329094365,1718103033158,-287.47704793,0.00018036,2]
[329094366,1718103033169,-2095.08239938,0.00018036,2]
[329094367,1718103033181,-223.588961,0.00018886,2]
[329094368,1718103033192,-489.96273621,0.00019177,2]
[329094369,1718103033203,-160.053646,0.00019178,2]
[329094370,1718103033213,-5321.33301153,0.00019999,2]
[329094408,1718103038688,-3374.12606928,0.00019999,2]
[329094409,1718103038698,-529.07913635,0.0002,4]
[329094410,1718103038708,-207.37058644,0.00020091,2]
[329094411,1718103038717,-1000.0,0.00021,2]
[329094412,1718103038728,-3930.4779526,0.00021,5]
[329094413,1718103038738,-675.01243679,0.00021528,2]
[329094414,1718103038751,-103.44813581,0.00021528,2]
[329094415,1718103038761,-477.9,0.00021628,3]
[329094416,1718103038771,-392.04315617,0.00021663,2]
[329094417,1718103038782,-216.69832233,0.00021663,2]
[329094418,1718103038792,-1416.84957061,0.00021699,2]
[329094419,1718103038803,-592.41,0.00021707,3]
[329094420,1718103038812,-195.19218723,0.00021713,2]
[329094421,1718103038822,-156.02229876,0.00021713,2]
[329094422,1718103038832,-534.70225318,0.00021713,2]
[329094423,1718103038842,-774.49408999,0.00021713,2]
[329094424,1718103038853,-1441.96072993,0.00021713,2]
[329094425,1718103038863,-8.62265197,0.00021713,2]
[329094426,1718103038878,-271.91846756,0.00021713,2]
[329094427,1718103038888,-156.81231124,0.00021714,2]
[329094428,1718103038898,-2662.34782149,0.00021715,2]
[329094429,1718103038912,-5831.43058346,0.00021715,2]
[329094430,1718103038923,-520.30892496,0.00021715,2]
[329094432,1718103038933,-524.19655516,0.00021715,2]
[329094433,1718103038944,-285.76830085,0.00021715,2]
[329094434,1718103038955,-692.26255018,0.00021715,2]
[329094435,1718103038969,-225.90373805,0.00021715,2]
[329094436,1718103038980,-724.01301029,0.00021715,2]
[329094437,1718103038990,-1355.41274288,0.00021715,2]
[329094438,1718103039001,-10490.37515331,0.00021715,2]
[329094439,1718103039013,-837.83743989,0.00021716,2]
[329094440,1718103039024,-42756.83328322,0.00021717,2]
[329094441,1718103039036,-1416.8495706,0.00021729,2]
[329094442,1718103039048,-1416.8495706,0.00021758,2]
[329094443,1718103039059,-1416.8495706,0.00021788,2]
[329094444,1718103039069,-620.21308391,0.00021799,2]
[329094445,1718103039079,-2000.0,0.00021815,2]
[329094446,1718103039089,-500.0,0.00021816,2]
[329094447,1718103039098,-198.13377132,0.00021816,2]
[329094448,1718103039108,-500.0,0.00021816,2]
[329094449,1718103039117,-500.0,0.00021816,2]
[329094450,1718103039127,-500.0,0.00021816,2]
[329094451,1718103039137,-500.0,0.00021816,2]
[329094452,1718103039152,-500.0,0.00021816,2]
[329094453,1718103039163,-500.0,0.00021816,2]
[329094454,1718103039174,-500.0,0.00021816,2]
[329094455,1718103039184,-3000.0,0.00021816,2]
[329094456,1718103039194,-3000.0,0.00021816,2]
[329094457,1718103039204,-3000.0,0.00021816,2]
[329094458,1718103039215,-2927.80927491,0.00021816,2]
[329094459,1718103039225,-22046.83542993,0.00021817,15]
[329094460,1718103039236,-88888.0,0.00021817,3]
[329094461,1718103039247,-1416.8495706,0.00021817,2]
[329094462,1718103039257,-1833.13652269,0.00021892,2]
[329094463,1718103039268,-309.86055114,0.00021913,2]
[329094464,1718103039278,-187.78108932,0.00021913,2]
[329094465,1718103039288,-686.12053619,0.00021913,2]
[329094466,1718103039299,-1100.27196223,0.00021913,2]
[329094467,1718103039309,-411.42673703,0.00021913,2]
[329094468,1718103039319,-155.19428963,0.00021914,2]
[329094469,1718103039330,-1087.99520953,0.00021915,2]
[329094470,1718103039340,-12610.71358552,0.00021915,2]
[329094471,1718103039351,-1189.82536981,0.00021915,2]
[329094472,1718103039360,-62955.92491331,0.00021915,2]
[329094473,1718103039373,-2055.20589414,0.00021915,2]
[329094474,1718103039383,-253.10278893,0.00021915,2]
[329094475,1718103039393,-6119.98565035,0.00021916,2]
[329094476,1718103039406,-13225.57193423,0.00021916,2]
[329094477,1718103039416,-501.17999592,0.00021917,2]
[329094478,1718103039426,-509.61278591,0.00021917,2]
[329094479,1718103039436,-501.41958495,0.00021917,2]
[329094480,1718103039446,-500.0,0.00021917,2]
[329094481,1718103039457,-500.0,0.00021917,2]
[329094482,1718103039468,-510.74944463,0.00021917,2]
[329094483,1718103039478,-510.68745744,0.00021917,2]
[329094484,1718103039490,-503.785688,0.00021917,2]
[329094485,1718103039500,-504.0485279,0.00021917,2]
[329094486,1718103039510,-500.0,0.00021917,2]
[329094487,1718103039520,-500.0,0.00021917,2]
[329094488,1718103039531,-500.0,0.00021917,2]
[329094489,1718103039541,-503.43438394,0.00021917,2]
[329094490,1718103039551,-502.82621695,0.00021917,2]
[329094491,1718103039561,-500.0,0.00021917,2]
[329094492,1718103039572,-508.86402537,0.00021917,2]
[329094493,1718103039583,-502.50623745,0.00021917,2]
[329094494,1718103039594,-500.0,0.00021917,2]
[329094495,1718103039605,-500.0,0.00021917,2]
[329094496,1718103039616,-503.39208149,0.00021917,2]
[329094497,1718103039627,-500.0,0.00021917,2]
[329094498,1718103039638,-505.03349213,0.00021917,2]
[329094499,1718103039648,-355.53376981,0.00021917,2]
[329094500,1718103039659,-500.0,0.00021917,2]
[329094501,1718103039669,-526.47922446,0.00021917,2]
[329094502,1718103039679,-500.0,0.00021917,2]
[329094503,1718103039689,-500.0,0.00021917,2]
[329094504,1718103039700,-500.0,0.00021917,2]
[329094505,1718103039711,-500.0,0.00021917,2]
[329094506,1718103039721,-500.0,0.00021917,2]
[329094507,1718103039732,-523.64325891,0.00021917,2]
[329094508,1718103039743,-500.0,0.00021917,2]
[329094509,1718103039753,-447.96430116,0.00021917,2]
[329094510,1718103039764,-500.0,0.00021917,2]
[329094511,1718103039774,-507.09658554,0.00021917,2]
[329094512,1718103039785,-500.0,0.00021917,2]
[329094513,1718103039796,-507.19983456,0.00021917,2]
[329094514,1718103039806,-500.0,0.00021917,2]
[329094515,1718103039817,-500.0,0.00021917,2]
[329094516,1718103039828,-500.0,0.00021917,2]
[329094517,1718103039839,-500.0,0.00021917,2]
[329094518,1718103039849,-500.0,0.00021917,2]
[329094519,1718103039860,-500.0,0.00021917,2]
[329094520,1718103039871,-502.33813299,0.00021917,2]
[329094521,1718103039881,-502.47805445,0.00021917,2]
[329094522,1718103039892,-157.23325445,0.00021917,2]
[329094523,1718103039902,-500.0,0.00021917,2]
[329094524,1718103039912,-502.34144687,0.00021917,2]
[329094525,1718103039923,-500.0,0.00021917,2]
[329094526,1718103039934,-500.0,0.00021917,2]
[329094527,1718103039945,-500.0,0.00021917,2]
[329094528,1718103039955,-512.54245142,0.00021917,2]
[329094529,1718103039967,-500.0,0.00021917,2]
[329094530,1718103039978,-500.0,0.00021917,2]
[329094531,1718103039989,-368.41660308,0.00021917,2]
[329094533,1718103040108,-500.0,0.00021917,2]
[329094534,1718103040119,-500.0,0.00021917,2]
[329094535,1718103040130,-500.0,0.00021917,2]
[329094536,1718103040147,-382.74222411,0.00021917,2]
[329094537,1718103040158,-500.0,0.00021917,2]
[329094538,1718103040168,-500.0,0.00021917,2]
[329094539,1718103040179,-500.0,0.00021917,2]
[329094540,1718103040190,-500.0,0.00021917,2]
[329094541,1718103040200,-500.0,0.00021917,2]
[329094542,1718103040211,-238.24599225,0.00021917,2]
[329094543,1718103040221,-500.0,0.00021917,2]
[329094544,1718103040232,-500.0,0.00021917,2]
[329094545,1718103040243,-262.12126567,0.00021917,2]
[329094546,1718103040253,-500.0,0.00021917,2]
[329094547,1718103040263,-516.18877623,0.00021917,2]
[329094548,1718103040273,-500.0,0.00021917,2]
[329094549,1718103040284,-500.0,0.00021917,2]
[329094550,1718103040294,-158.83941164,0.00021917,2]
[329094551,1718103040305,-500.0,0.00021917,2]
[329094552,1718103040316,-500.0,0.00021917,2]
[329094553,1718103040327,-158.83946374,0.00021917,2]
[329094554,1718103040337,-153.94324272,0.00021917,2]
[329094555,1718103040347,-500.0,0.00021917,2]
[329094556,1718103040358,-500.0,0.00021917,2]
[329094557,1718103040368,-500.0,0.00021917,2]
[329094558,1718103040379,-507.36631062,0.00021917,2]
[329094559,1718103040390,-500.0,0.00021917,2]
[329094560,1718103040401,-157.63869526,0.00021917,2]
[329094561,1718103040411,-507.30766513,0.00021917,2]
[329094562,1718103040422,-500.0,0.00021917,2]
[329094563,1718103040433,-500.0,0.00021917,2]
[329094564,1718103040444,-636.22165587,0.00021917,2]
[329094565,1718103040455,-500.0,0.00021917,2]
[329094566,1718103040468,-500.0,0.00021917,2]
[329094568,1718103040479,-385.65748618,0.00021917,2]
[329094569,1718103040491,-500.0,0.00021917,2]
[329094570,1718103040502,-500.0,0.00021917,2]
[329094571,1718103040513,-500.0,0.00021917,2]
[329094572,1718103040524,-500.61856563,0.00021917,2]
[329094574,1718103040537,-500.0,0.00021917,2]
[329094575,1718103040548,-500.0,0.00021917,2]
[329094576,1718103040559,-500.0,0.00021917,2]
[329094577,1718103040570,-507.97815804,0.00021917,2]
[329094578,1718103040581,-500.0,0.00021917,2]
[329094579,1718103040593,-503.83899908,0.00021917,2]
[329094580,1718103040604,-500.0,0.00021917,2]
[329094581,1718103040615,-555.58793569,0.00021917,2]
[329094582,1718103040626,-500.0,0.00021917,2]
[329094583,1718103040637,-500.0,0.00021917,2]
[329094584,1718103040648,-500.0,0.00021917,2]
[329094585,1718103040659,-500.0,0.00021917,2]
[329094587,1718103040670,-500.0,0.00021917,2]
[329094588,1718103040681,-500.0,0.00021917,2]
[329094589,1718103040692,-500.0,0.00021917,2]
[329094590,1718103040703,-618.77698139,0.00021917,2]
[329094591,1718103040714,-500.0,0.00021917,2]
[329094592,1718103040725,-620.81,0.00021917,2]
[329094593,1718103040736,-635.96017953,0.00021917,2]
[329094594,1718103040748,-502.03797108,0.00021917,2]
[329094595,1718103040759,-501.71349734,0.00021917,2]
[329094596,1718103040769,-500.0,0.00021917,2]
[329094598,1718103040780,-283.10370163,0.00021917,2]
[329094599,1718103040791,-500.0,0.00021917,2]
[329094600,1718103040802,-602.65210459,0.00021917,2]
[329094601,1718103040813,-500.0,0.00021917,2]
[329094602,1718103040823,-500.0,0.00021917,2]
[329094603,1718103040834,-503.58748815,0.00021917,2]
[329094604,1718103040846,-504.33011526,0.00021917,2]
[329094605,1718103040856,-500.0,0.00021917,2]
[329094606,1718103040866,-500.0,0.00021917,2]
[329094607,1718103040876,-500.0,0.00021917,2]
[329094608,1718103040887,-536.77771604,0.00021917,2]
[329094609,1718103040898,-500.0,0.00021917,2]
[329094610,1718103040908,-500.0,0.00021917,2]
[329094611,1718103040919,-500.0,0.00021917,2]
[329094612,1718103040929,-500.0,0.00021917,2]
[329094613,1718103040940,-500.0,0.00021917,2]
[329094614,1718103040952,-418.80939304,0.00021917,2]
[329094615,1718103040964,-503.29381313,0.00021917,2]
[329094616,1718103040977,-500.0,0.00021917,2]
[329094617,1718103040987,-500.0,0.00021917,2]
[329094618,1718103041000,-500.0,0.00021917,2]
[329094619,1718103041011,-501.89900023,0.00021917,2]
[329094620,1718103041022,-500.0,0.00021917,2]
[329094621,1718103041031,-523.83410348,0.00021917,2]
[329094622,1718103041043,-500.0,0.00021917,2]
[329094623,1718103041053,-500.0,0.00021917,2]
[329094624,1718103041065,-500.0,0.00021917,2]
[329094625,1718103041076,-500.0,0.00021917,2]
[329094626,1718103041086,-500.0,0.00021917,2]
[329094628,1718103041096,-500.0,0.00021917,2]
[329094629,1718103041106,-500.0,0.00021917,2]
[329094630,1718103041116,-500.0,0.00021917,2]
[329094631,1718103041126,-500.0,0.00021917,2]
[329094632,1718103041136,-500.0,0.00021917,2]
[329094633,1718103041151,-500.0,0.00021917,2]
[329094634,1718103041161,-500.0,0.00021917,2]
[329094635,1718103041171,-500.0,0.00021917,2]
[329094636,1718103041181,-504.81830943,0.00021917,2]
[329094637,1718103041192,-505.96167504,0.00021917,2]
[329094638,1718103041202,-500.0,0.00021917,2]
[329094639,1718103041212,-500.0,0.00021917,2]
[329094640,1718103041223,-500.0,0.00021917,2]
[329094641,1718103041233,-503.42359992,0.00021917,2]
[329094642,1718103041243,-500.0,0.00021917,2]
[329094643,1718103041253,-407.34114668,0.00021917,2]
[329094644,1718103041263,-500.0,0.00021917,4]
[329094645,1718103041274,-1022.78,0.00021917,2]
[329094646,1718103041284,-2319.83,0.00021917,2]
[329094647,1718103041294,-500.0,0.00021917,2]
[329094648,1718103041304,-1102.3,0.00021917,2]
[329094649,1718103041315,-500.0,0.00021917,2]
[329094650,1718103041325,-500.0,0.00021917,2]
[329094651,1718103041336,-500.0,0.00021917,2]
[329094652,1718103041346,-503.87656587,0.00021917,2]
[329094653,1718103041357,-500.0,0.00021917,2]
[329094654,1718103041368,-500.0,0.00021917,2]
[329094655,1718103041378,-500.0,0.00021917,2]
[329094656,1718103041389,-500.0,0.00021917,2]
[329094657,1718103041399,-500.0,0.00021917,2]
[329094658,1718103041409,-500.0,0.00021917,2]
[329094659,1718103041420,-500.0,0.00021917,2]
[329094660,1718103041430,-977.75,0.00021917,2]
[329094661,1718103041441,-500.0,0.00021917,2]
[329094662,1718103041451,-500.0,0.00021917,2]
[329094663,1718103041462,-500.0,0.00021917,2]
[329094664,1718103041472,-543.65113368,0.00021917,2]
[329094665,1718103041483,-500.0,0.00021917,2]
[329094666,1718103041494,-500.48581395,0.00021917,2]
[329094668,1718103041505,-500.0,0.00021917,2]
[329094670,1718103041516,-501.8202914,0.00021917,2]
[329094672,1718103041527,-506.41513311,0.00021917,2]
[329094674,1718103041538,-857.3,0.00021917,2]
[329094676,1718103041548,-504.60574249,0.00021917,2]
[329094678,1718103041559,-500.0,0.00021917,2]
[329094680,1718103041570,-500.0,0.00021917,2]
[329094682,1718103041581,-3257.72,0.00021917,2]
[329094684,1718103041591,-500.0,0.00021917,2]
[329094686,1718103041602,-500.0,0.00021917,2]
[329094688,1718103041613,-516.02195612,0.00021917,2]
[329094690,1718103041624,-500.0,0.00021917,2]
[329094692,1718103041634,-500.0,0.00021917,2]
[329094694,1718103041644,-500.0,0.00021917,2]
[329094696,1718103041655,-565.0,0.00021917,2]
[329094698,1718103041665,-500.0,0.00021917,2]
[329094700,1718103041676,-553.54642679,0.00021917,2]
[329094702,1718103041687,-500.0,0.00021917,2]
[329094704,1718103041698,-501.2120773,0.00021917,2]
[329094706,1718103041709,-500.0,0.00021917,2]
[329094708,1718103041720,-500.0,0.00021917,2]
[329094710,1718103041731,-500.0,0.00021917,2]
[329094712,1718103041743,-500.0,0.00021917,2]
[329094714,1718103041753,-500.0,0.00021917,2]
[329094716,1718103041763,-500.0,0.00021917,2]
[329094718,1718103041774,-394.45123888,0.00021917,2]
[329094720,1718103041785,-500.0,0.00021917,2]
[329094722,1718103041795,-500.0,0.00021917,2]
[329094724,1718103041806,-2824.6,0.00021917,2]
[329094726,1718103041816,-500.0,0.00021917,2]
[329094728,1718103041826,-500.0,0.00021917,2]
[329094730,1718103041837,-500.0,0.00021917,2]
[329094732,1718103041847,-500.0,0.00021917,2]
[329094734,1718103041857,-500.0,0.00021917,2]
[329094736,1718103041868,-500.0,0.00021917,2]
[329094738,1718103041878,-500.0,0.00021917,2]
[329094740,1718103041889,-500.0,0.00021917,2]
[329094742,1718103041898,-500.0,0.00021917,2]
[329094744,1718103041909,-500.0,0.00021917,2]
[329094746,1718103041920,-500.0,0.00021917,2]
[329094748,1718103041932,-2271.31,0.00021917,2]
[329094750,1718103041942,-500.0,0.00021917,2]
[329094752,1718103041952,-500.0,0.00021917,2]
[329094754,1718103041966,-501.39424638,0.00021917,2]
[329094756,1718103041976,-503.47289318,0.00021917,2]
[329094758,1718103041988,-500.0,0.00021917,2]
[329094760,1718103042000,-500.0,0.00021917,2]
[329094762,1718103042013,-500.0,0.00021917,2]
[329094764,1718103042025,-268.75111322,0.00021917,2]
[329094766,1718103042036,-500.0,0.00021917,2]
[329094768,1718103042050,-500.0,0.00021917,2]
[329094770,1718103042061,-519.49438458,0.00021917,2]
[329094772,1718103042072,-500.09875197,0.00021917,2]
[329094774,1718103042083,-500.0,0.00021917,2]
[329094776,1718103042094,-500.0,0.00021917,2]
[329094778,1718103042104,-502.00397062,0.00021917,2]
[329094780,1718103042115,-500.0,0.00021917,2]
[329094782,1718103042126,-500.0,0.00021917,2]
[329094784,1718103042137,-500.0,0.00021917,2]
[329094786,1718103042153,-500.0,0.00021917,2]
[329094788,1718103042164,-268.2256861,0.00021917,2]
[329094790,1718103042175,-14941.47,0.00021917,2]
[329094792,1718103042185,-500.0,0.00021917,2]
[329094794,1718103042196,-503.80010754,0.00021917,2]
[329094796,1718103042207,-500.0,0.00021917,2]
[329094798,1718103042218,-500.8717857,0.00021917,2]
[329094800,1718103042229,-500.0,0.00021917,2]
[329094802,1718103042239,-590.00910574,0.00021917,2]
[329094804,1718103042251,-500.0,0.00021917,2]
[329094806,1718103042262,-500.0,0.00021917,2]
[329094808,1718103042273,-500.0,0.00021917,2]
[329094810,1718103042284,-500.0,0.00021917,2]
[329094812,1718103042294,-518.98291501,0.00021917,2]
[329094814,1718103042305,-500.0,0.00021917,2]
[329094816,1718103042316,-500.0,0.00021917,2]
[329094818,1718103042328,-500.0,0.00021917,2]
[329094820,1718103042338,-500.0,0.00021917,2]
[329094822,1718103042349,-1601.52,0.00021917,2]
[329094824,1718103042360,-1009.35867159,0.00021917,2]
[329094826,1718103042371,-500.0,0.00021917,2]
[329094828,1718103042382,-500.0,0.00021917,2]
[329094830,1718103042393,-500.0,0.00021917,2]
[329094832,1718103042403,-500.0,0.00021917,2]
[329094834,1718103042415,-586.34,0.00021917,2]
[329094836,1718103042425,-500.0,0.00021917,2]
[329094838,1718103042436,-554.94673723,0.00021917,2]
[329094840,1718103042446,-500.0,0.00021917,2]
[329094842,1718103042456,-500.0,0.00021917,2]
[329094844,1718103042467,-500.0,0.00021917,2]
[329094846,1718103042478,-502.44112935,0.00021917,2]
[329094848,1718103042489,-502.65397186,0.00021917,2]
[329094850,1718103042503,-500.0,0.00021917,2]
[329094852,1718103042514,-503.12154474,0.00021917,2]
[329094854,1718103042524,-501.20372779,0.00021917,2]
[329094856,1718103042535,-500.0,0.00021917,2]
[329094858,1718103042546,-500.0,0.00021917,2]
[329094860,1718103042556,-500.0,0.00021917,2]